Cogmind - Beta 17 @@@ ROGUE MODE // 2026.08.14 @ 21:20:55 Player: Alicianrone Result: Self-destructed Performance ------------- Evolutions (2) 1000 Regions Visited (8) 1600 Robots Destroyed (129) 645 Value Destroyed (3592) 3592 Prototype IDs (36) 720 Alien Tech Used (0) 0 Bonus (637) 637 TOTAL SCORE: 8194 Bonus ------- High Alert Combat Kills 199 Follower Combat Kills 138 Aligned with FarCom 300 Cogmind --------- Core Integrity 68/550 Matter 300/300 Energy 280/280 System Corruption 0% Temperature Cool (0) Movement Rolling (135) Ox3 Location -8/Scraptown Parts ------- > --- POWER (1) -------- Cooled Ion Engine > --- PROPULSION (3) --- Advanced Treads Compact Wheel Compact Wheel > --- UTILITY (4) ------ Huge Storage Unit Heavy Armor Plating Hacking Suite > --- WEAPON (3) ------- Improved Heavy Laser Heavy Assault Cannon > --- INVENTORY (25) --- Cooled Ion Engine Nuclear Core Reinforced Deuterium Engine Light Fission Core Airjet Airjet Improved Airjet Improved Airjet Improved Airjet Compact Battery (200) Energy Well (350) High-capacity Matter Pod (200) Modified TNC Improved Light Armor Plating Hacking Suite Authchip [Device] Authchip [Device] Authchip [Weapon] High-powered Tractor Beam Heavy EM Shotgun Heavy EM Shotgun Advanced EMP Blaster Advanced EMP Blaster Improved Grenade Launcher CPS Tube (2) Peak State ------------ > --- POWER ------------ Cooled Ion Engine > --- PROPULSION ------- Advanced Treads Compact Wheel Compact Wheel > --- UTILITY ---------- Huge Storage Unit Heavy Armor Plating Hacking Suite > --- WEAPON ----------- Improved Heavy Laser Heavy Assault Cannon > --- INVENTORY -------- Cooled Ion Engine Nuclear Core Reinforced Deuterium Engine Light Fission Core Airjet Airjet Improved Airjet Improved Airjet Improved Airjet Compact Battery Energy Well High-capacity Matter Pod Modified TNC Improved Light Armor Plating Hacking Suite Authchip [Device] Authchip [Device] Authchip [Weapon] High-powered Tractor Beam Heavy EM Shotgun Heavy EM Shotgun Advanced EMP Blaster Advanced EMP Blaster Improved Grenade Launcher CPS Tube [Rating: 39] Favorites ----------- Power Cooled Ion Engine Engine Cooled Ion Engine Propulsion Compact Wheel Treads Light Treads Wheel Compact Wheel Hover Unit Improved Airjet Flight Unit Improved Flight Unit Utility Huge Storage Unit Device Improved Heat Sink Storage Huge Storage Unit Processor Advanced Targeting Computer Hackware Hacking Suite Protection Hardened Light Armor Plating Weapon Heavy Assault Cannon Energy Gun Improved Heavy Laser Energy Cannon Heavy Particle Cannon Ballistic Gun Light Assault Rifle Ballistic Cannon Heavy Assault Cannon Launcher Mini Grenade Launcher Build | -11 -10 -10 -10 -9 -8 -8 -8 -8 ------- Run | Yrd Mat Min Exi Min Mat Sto Rec Scr Slots Evolved 4 | . . . . . 4 . . . Power . | . . . . . . . . . Propulsion 1 | . . . . . 1 . . . Utility 2 | . . . . . 2 . . . Weapon 1 | . . . . . 1 . . . Parts Attached 77 | 7 7 3 . 2 39 16 2 1 Power 9 | 1 . 1 . 1 4 2 . . Engine 9 | 1 . 1 . 1 4 2 . . Core . | . . . . . . . . . Reactor . | . . . . . . . . . Propulsion 26 | 2 2 1 . . 13 7 . 1 Treads 11 | . 2 . . . 5 3 . 1 Leg . | . . . . . . . . . Wheel 13 | 2 . 1 . . 8 2 . . Hover 1 | . . . . . . 1 . . Flight 1 | . . . . . . 1 . . Utility 19 | 2 3 . . . 11 1 2 . Device 6 | 1 . . . . 5 . . . Storage 3 | 1 2 . . . . . . . Processor 1 | . . . . . 1 . . . Hackware 1 | . . . . . . 1 . . Protection 8 | . 1 . . . 5 . 2 . Artifact . | . . . . . . . . . Weapon 23 | 2 2 1 . 1 11 6 . . Energy Gun 10 | . . . . . 5 5 . . Energy Cannon 5 | . 1 . . . 4 . . . Ballistic Gun 4 | 2 . 1 . . . 1 . . Ballistic Cannon 1 | . . . . . 1 . . . Launcher 3 | . 1 . . 1 1 . . . Special Weapon . | . . . . . . . . . Impact Weapon . | . . . . . . . . . Slashing Weapon . | . . . . . . . . . Piercing Weapon . | . . . . . . . . . Special Melee Weapon . | . . . . . . . . . Unidentified Prototypes 12 | . . . . . 3 9 . . Parts Lost 23 | . . 2 . 1 18 1 1 . Power 4 | . . 1 . 1 2 . . . Propulsion 11 | . . 1 . . 9 1 . . Utility 5 | . . . . . 4 . 1 . Weapon 3 | . . . . . 3 . . . Highest Loss Streak 10 | . . 2 . 1 10 1 1 . To Critical Strikes . | . . . . . . . . . Average Backups 18 | 1 5 8 12 13 17 24 24 25 Power 3 | . . . 2 3 4 4 4 4 Propulsion 5 | 1 3 3 4 4 4 8 7 5 Utility 5 | . 1 1 1 2 4 6 8 9 Weapon 4 | . . 3 4 4 4 4 5 5 Tool/Special . | . . . . . . . . . Unused Backups 33 | . 1 . 1 . 6 4 . 21 Power 5 | . . . . . . 1 . 4 Propulsion 9 | . 1 . 1 . 1 1 . 5 Utility 10 | . . . . . 1 . . 9 Weapon 7 | . . . . . 3 2 . 2 Tool/Special 2 | . . . . . 1 . . 1 Average Slot Usage (%) 90 | . 100 99 100 96 92 89 81 81 Engine 10 | . 14 13 14 10 8 9 9 9 Treads 7 | . 5 . . . 10 9 9 9 Wheel 19 | . 22 27 28 28 15 17 17 18 Device 8 | . 7 4 14 14 15 9 . . Storage 10 | . 14 14 14 14 9 9 9 9 Hackware 4 | . . . . . . 8 9 9 Protection 7 | . 6 9 . . 4 9 8 9 Energy Gun 5 | . . . . . 10 4 9 9 Energy Cannon 6 | . 8 13 14 14 7 4 . . Ballistic Gun 5 | . 19 14 14 13 4 . . . Ballistic Cannon 4 | . . . . . 1 8 9 9 Peak Build Rating 39 | 7 7 8 12 10 36 38 37 39 Average Rating 25 | 4 6 7 8 9 27 33 36 37 On Entrance 16 | . 7 7 7 9 10 32 35 37 Avg Prop Armor Cover (%) 6 | . . . . . 10 6 4 4 Naked Turns . | . . . . . . . . . Heaviest Build 120 | 13 90 90 89 89 114 114 120 120 Greatest Support 63 | 26 40 26 26 26 63 60 32 32 Greatest Overweight (x) 11 | . 3 5 3 3 11 4 3 3 Average Overweight (x) 3 | . 1 3 3 3 4 3 3 3 Largest Inventory Capacity 25 | 8 25 25 25 25 25 25 25 25 Average Capacity 24 | 6 17 25 25 25 25 25 25 25 Most Carried 25 | 3 8 10 16 14 25 25 25 25 Average Carried 18 | 1 5 8 12 13 17 24 24 24 Final Capacity 25 | 8 25 25 25 25 25 25 25 25 Final Carried 25 | 3 8 9 13 14 25 24 25 25 Class Distribution -------------------- 28% | Mutant 27% | Scavenger-Skirmisher 15% | Commander-Skirmisher 12% | Skirmisher 7% | Commander-Tank 3% | Scavenger-Tank 3% | Tank Dominant Class ---------------- Mutant | -10/Materials Mutant | -10/Mines Mutant | -10/Exiles Mutant | -9/Mines Skirmisher | -8/Materials Scavenger-Skirmisher | -8/Storage Commander-Skirmisher | -8/Recycling Commander-Tank | -8/Scraptown Resources | -11 -10 -10 -10 -9 -8 -8 -8 -8 ----------- Run | Yrd Mat Min Exi Min Mat Sto Rec Scr Matter Collected 3121 | 268 263 176 . 15 867 1245 277 10 Remotely . | . . . . . . . . . Salvage Created 3922 | 62 338 123 . 15 1844 1301 239 . Parts 200 | 8 20 15 . 4 82 59 12 . Haulers Intercepted 10 | . . . . . 4 6 . . Recyclers Shooed 6 | . . . . . 3 2 1 . Parts Field Recycled . | . . . . . . . . . Retrieved Matter . | . . . . . . . . . Parts Self-Destructed . | . . . . . . . . . Prevented . | . . . . . . . . . Parts Restored . | . . . . . . . . . Kills | -11 -10 -10 -10 -9 -8 -8 -8 -8 ------- Run | Yrd Mat Min Exi Min Mat Sto Rec Scr Combat Hostiles Destroyed 85 | . 9 8 . 6 32 26 4 . Guns 16 | . 5 1 . . 10 . . . Cannons 36 | . 2 1 . . 11 18 4 . AOE 33 | . 2 6 . 6 11 8 . . Classes Destroyed 15 | 1 2 1 . . 9 2 . . Worker 9 | . . . . . 8 . 1 . Builder 4 | . . . . . 2 1 1 . Tunneler 3 | 3 . . . . . . . . Hauler 10 | . . . . . 4 6 . . Recycler 9 | . . . . . 3 5 1 . Mechanic 2 | . . . . . 1 1 . . Operator 1 | . 1 . . . . . . . Watcher 6 | . . . . . 4 2 . . Swarmer 19 | . . 6 . 6 3 4 . . Grunt 44 | . 9 2 . . 23 10 . . Brawler 1 | . . . . . . 1 . . Duelist 2 | . . . . . 1 1 . . Protector 1 | . . . . . . 1 . . Sentry 14 | . . . . . 4 8 2 . Hunter 4 | . . . . . 1 1 2 . Best Kill Streak 12 | 2 3 6 . 3 12 10 5 . Combat Bots Only 6 | . 3 6 . 3 6 5 2 . Max Kills in Single Turn 4 | 1 1 2 . 3 2 4 2 . Gunslinging . | . . . . . . . . . Exploded 3 | . 1 2 . 3 2 3 . . Melee . | . . . . . . . . . Uniques/NPCs Destroyed . | . . . . . . . . . Combat | -11 -10 -10 -10 -9 -8 -8 -8 -8 -------- Run | Yrd Mat Min Exi Min Mat Sto Rec Scr Hostile Shots Fired 316 | . 32 15 . 3 181 58 27 . Missed 89 | . 9 3 . . 47 23 7 . Hits 227 | . 23 12 . 3 134 35 20 . Projectile 227 | . 23 12 . 3 134 35 20 . Critical Strikes 8 | . 1 . . . 6 1 . . Damage Taken 3318 | . 267 215 . 55 1979 517 285 . Core 590 | . 37 55 . 16 324 144 14 . Absorbed by Shields 128 | . . . . . 128 . . . Regen/Repaired (Parts) 353 | . . . . . . 353 . . Core Remaining (%) 78 | 100 . . . 56 . . . . Volleys Fired 298 | 4 27 12 . 3 121 105 26 . Largest 3 | 2 2 2 . 1 3 2 1 . Hottest 197 | 40 80 80 . 30 197 125 50 . Shots Fired 464 | 8 52 18 . 3 251 106 26 . Gun 216 | 8 43 6 . . 159 . . . Cannon 215 | . 7 6 . . 76 100 26 . Launcher 33 | . 2 6 . 3 16 6 . . Special . | . . . . . . . . . Kinetic 249 | 8 43 6 . . 78 88 26 . Thermal 182 | . 7 6 . . 157 12 . . Explosive 33 | . 2 6 . 3 16 6 . . Electromagnetic . | . . . . . . . . . Robot Hit Streak 21 | 6 7 11 . . 21 11 5 . Robot Miss Streak 5 | . 2 1 . . 5 5 3 . Penetration Max 1 | . . . . . . . 1 . Secondary Targets 2 | . 1 . . . 1 . . . Max Gunslinging Chain 1 | . 1 . . . 1 . . . Shots Hit Robots 298 | 6 30 11 . . 162 73 16 . Core Hits 199 | 5 22 12 . 6 97 49 8 . Critical Kills . | . . . . . . . . . Critical Parts Destroyed . | . . . . . . . . . Critical Strikes 16 | . . . . . 2 10 4 . Burn 1 | . . . . . 1 . . . Blast 15 | . . . . . 1 10 4 . Melee Attacks . | . . . . . . . . . Impact . | . . . . . . . . . Slashing . | . . . . . . . . . Piercing . | . . . . . . . . . Sneak Attacks . | . . . . . . . . . Combat Hostiles . | . . . . . . . . . Follow-up Attacks . | . . . . . . . . . Damage Inflicted 11286 | 50 446 345 . 350 4837 4292 966 . Guns 2032 | 50 200 43 . . 1739 . . . Cannons 5867 | . 88 89 . . 1384 3340 966 . Explosions 3387 | . 158 213 . 350 1714 952 . . Melee . | . . . . . . . . . Ramming . | . . . . . . . . . Kinetic 5314 | 50 200 43 . . 890 3165 966 . Thermal 2585 | . 88 89 . . 2233 175 . . Explosive 3387 | . 158 213 . 350 1714 952 . . Electromagnetic . | . . . . . . . . . Impact . | . . . . . . . . . Slashing . | . . . . . . . . . Piercing . | . . . . . . . . . Highest Corruption . | . . . . . . . . . Average Corruption . | . . . . . . . . . Corruption Purged . | . . . . . . . . . Corruption Blocked . | . . . . . . . . . Overload Shots . | . . . . . . . . . Overflow Damage 444 | . 6 . . 32 78 253 75 . Projectiles 349 | . . . . . 49 225 75 . Explosions 95 | . 6 . . 32 29 28 . . Melee . | . . . . . . . . . Knockbacks 12 | . . . . . . 11 1 . Impact . | . . . . . . . . . Kinetic 12 | . . . . . . 11 1 . Secondary . | . . . . . . . . . Self-Inflicted Damage 136 | . . 71 . 33 32 . . . Shots 5 | . . 2 . 1 2 . . . Rammed . | . . . . . . . . . Targets Rammed . | . . . . . . . . . Kicked . | . . . . . . . . . Crushed . | . . . . . . . . . Highest Temperature 511 | . 142 189 . . 511 24 12 . Average Temperature 85 | . 34 93 . . 114 9 6 . Received Heat Transfer 1629 | . 168 57 . . 1107 243 54 . Effects 4 | . . . . . 4 . . . Energy Bleed 1 | . . . . . 1 . . . Damage (major) 3 | . . . . . 3 . . . Siege Activations . | . . . . . . . . . Martial Activations . | . . . . . . . . . Shielding Activations . | . . . . . . . . . Robots Disrupted . | . . . . . . . . . Combat Hostiles . | . . . . . . . . . Robots Corrupted . | . . . . . . . . . Combat Hostiles . | . . . . . . . . . Parts Fried . | . . . . . . . . . Impact Corruptions . | . . . . . . . . . Robots Melted . | . . . . . . . . . Combat Hostiles . | . . . . . . . . . Parts Melted 7 | . . . . . 6 1 . . Heat Transferred 4514 | . 185 185 . . 3885 259 . . Parts Sabotaged . | . . . . . . . . . Parts Stolen . | . . . . . . . . . Parts Stripped . | . . . . . . . . . Power Chain Reactions . | . . . . . . . . . Alert | -11 -10 -10 -10 -9 -8 -8 -8 -8 ------- Run | Yrd Mat Min Exi Min Mat Sto Rec Scr Maximum Alert Level 3 | . . . . . 2 3 1 . Low Security (%) 65 | 100 100 100 . 100 75 18 76 . Level 1 11 | . . . . . 8 16 23 . Level 2 18 | . . . . . 16 49 . . Level 3 4 | . . . . . . 15 . . Level 4 . | . . . . . . . . . Level 5 . | . . . . . . . . . High Security . | . . . . . . . . . Max Security . | . . . . . . . . . Peak Influence 716 | 10 185 176 . 139 512 716 293 . Initial 264 | . . 52 . . 30 204 264 . Average 224 | 1 130 54 . 68 142 482 152 . Influence Increases 3344 | 15 374 256 . 169 1142 1110 278 . Destroy 0b10 Robot/C 1760 | . 180 160 . 120 640 580 80 . Destroy 0b10 Robot/NC 230 | 15 5 . . . 110 80 20 . Destroy Leader 432 | . 60 30 . 20 156 166 . . Allied During Kill 34 | . . . . . . 29 5 . Successful Hack 58 | . 12 . . . 22 12 12 . Select Force Hacks 300 | . 60 . . . 30 60 150 . Disable Machine 150 | . . 45 . . 60 45 . . Destroy Structure 260 | . 12 21 . 29 109 78 11 . Lose Combat Pursuer 120 | . 45 . . . 15 60 . . Influence Decreases 3344 | 15 238 392 . 90 736 917 914 42 Entered New Map 870 | . . 84 . . 49 281 414 42 Time Decay 2136 | 15 238 288 . 90 429 586 490 . Lost Part 220 | . . 20 . . 180 10 10 . Lost Ally 40 | . . . . . . 40 . . Purge Threat 78 | . . . . . 78 . . . Squads Dispatched 14 | . 5 . . . 5 4 . . Investigation 8 | . 3 . . . 3 2 . . Extermination . | . . . . . . . . . Reinforcement 4 | . 2 . . . 2 . . . Assault 2 | . . . . . . 2 . . Garrison . | . . . . . . . . . Intercept . | . . . . . . . . . Searches Triggered . | . . . . . . . . . Construction Impeded 1 | . . . . . 1 . . . Haulers Reinforced . | . . . . . . . . . Active Scanning Responses . | . . . . . . . . . Cargo Convoy Interrupts . | . . . . . . . . . Stealth | -11 -10 -10 -10 -9 -8 -8 -8 -8 --------- Run | Yrd Mat Min Exi Min Mat Sto Rec Scr Distress Signals 10 | . 3 . . . 5 2 . . Communications Jammed . | . . . . . . . . . Distress Signals . | . . . . . . . . . Times Spotted 117 | . 15 5 . 6 49 40 2 . Peak Tracking Total 10 | . 5 2 . 3 7 10 1 . Tactical Retreats 8 | . 3 . . . 1 4 . . Traps | -11 -10 -10 -10 -9 -8 -8 -8 -8 ------- Run | Yrd Mat Min Exi Min Mat Sto Rec Scr Traps Triggered 3 | . 1 . . . 2 . . . Indirectly . | . . . . . . . . . Trap Hack Attempts . | . . . . . . . . . Triggered . | . . . . . . . . . Disarmed . | . . . . . . . . . Reprogrammed . | . . . . . . . . . Reused . | . . . . . . . . . Traps Extracted . | . . . . . . . . . Installed . | . . . . . . . . . Triggered . | . . . . . . . . . Machines | -11 -10 -10 -10 -9 -8 -8 -8 -8 ---------- Run | Yrd Mat Min Exi Min Mat Sto Rec Scr Machines Disabled 10 | . . 3 . . 4 3 . . Max in Single Turn 2 | . . 2 . . 1 1 . . Machines Repaired . | . . . . . . . . . Machines Dismantled . | . . . . . . . . . Machines Sabotaged . | . . . . . . . . . Overloaded Fab Kills . | . . . . . . . . . Hacking | -11 -10 -10 -10 -9 -8 -8 -8 -8 --------- Run | Yrd Mat Min Exi Min Mat Sto Rec Scr Machines Accessed 34 | . 4 . 2 . 9 9 10 . Terminals 16 | . 1 . . . 5 5 5 . Fabricators . | . . . . . . . . . Repair Stations 4 | . 1 . . . 1 2 . . Recycling Units 10 | . 2 . . . 1 2 5 . Scanalyzers 2 | . . . . . 2 . . . Garrison Access . | . . . . . . . . . Total Hacks 73 | . 12 . 3 . 25 20 13 . Successful 47 | . 4 . 3 . 16 13 11 . Failed 25 | . 8 . . . 8 7 2 . Catastrophic . | . . . . . . . . . Database Lockouts 1 | . . . . . 1 . . . Manual 40 | . 8 . 1 . 11 7 13 . Terminals 34 | . 3 . . . 13 11 7 . Fabricators . | . . . . . . . . . Repair Stations 12 | . 3 . . . 2 7 . . Recycling Units 15 | . 6 . . . 1 2 6 . Scanalyzers 9 | . . . . . 9 . . . Garrison Access . | . . . . . . . . . Terminal Hacks 12 | . . . 3 . 4 5 . . Record 2 | . . . 2 . . . . . Open Door 2 | . . . . . . 2 . . Branch Access Points 1 | . . . . . 1 . . . Emergency Access Points 1 | . . . . . . 1 . . Alert Level 1 | . . . . . . 1 . . Unreport Threat 1 | . . . . . 1 . . . Locate Traps 2 | . . . . . 2 . . . Hauler Manifests 1 | . . . . . . 1 . . Proto ID Catalog 1 | . . . 1 . . . . . Fabricator Hacks . | . . . . . . . . . Repair Station Hacks 9 | . 2 . . . 1 6 . . Scan Component 4 | . . . . . 1 3 . . Repair 3 | . . . . . . 3 . . Refit 2 | . 2 . . . . . . . Recycling Unit Hacks . | . . . . . . . . . Scanalyzer 7 | . . . . . 7 . . . Insert Component 3 | . . . . . 3 . . . Analyze 2 | . . . . . 2 . . . Retrieve Study 2 | . . . . . 2 . . . Garrison Access Hacks . | . . . . . . . . . Unauthorized Hacks 19 | . 2 . . . 4 2 11 . Terminals 9 | . . . . . 3 . 6 . Assimilate 1 | . . . . . 1 . . . Botnet 2 | . . . . . 1 . 1 . Skim 6 | . . . . . 1 . 5 . Fabricators . | . . . . . . . . . Repair Stations . | . . . . . . . . . Recycling Units 10 | . 2 . . . 1 2 5 . Tunnel 10 | . 2 . . . 1 2 5 . Scanalyzers . | . . . . . . . . . Garrison Access . | . . . . . . . . . Data Cores Recovered . | . . . . . . . . . Used . | . . . . . . . . . Hacking Detections 15 | . 4 . . . 4 5 2 . Full Trace Events 1 | . 1 . . . . . . . Feedback Events . | . . . . . . . . . Feedback Blocked . | . . . . . . . . . Robot Schematics Acquired . | . . . . . . . . . Robots Built . | . . . . . . . . . Authchips . | . . . . . . . . . Time . | . . . . . . . . . Total Robot Build Rating . | . . . . . . . . . Part Schematics Acquired 2 | . . . . . 2 . . . Parts Built . | . . . . . . . . . Authchips . | . . . . . . . . . Time . | . . . . . . . . . Total Part Build Rating . | . . . . . . . . . Part Studies Acquired 2 | . . . . . 2 . . . Parts Repaired 3 | . . . . . . 3 . . Time 114 | . . . . . . 114 . . Parts Recycled . | . . . . . . . . . Recycled Matter . | . . . . . . . . . Retrieved Matter . | . . . . . . . . . Retrieved Components . | . . . . . . . . . Parts Scanalyzed 2 | . . . . . 2 . . . Part Schematics Acquired 2 | . . . . . 2 . . . Parts Damaged . | . . . . . . . . . Bothacking | -11 -10 -10 -10 -9 -8 -8 -8 -8 ------------ Run | Yrd Mat Min Exi Min Mat Sto Rec Scr Used RIF Installer . | . . . . . . . . . Robots Hacked . | . . . . . . . . . Non-combat . | . . . . . . . . . Combat . | . . . . . . . . . Robot Hacks Applied . | . . . . . . . . . Relay Couplers Released . | . . . . . . . . . Fabnet Peak Effective % . | . . . . . . . . . Robots Rewired 9 | . . . . . . . 9 . Allies Hacked . | . . . . . . . . . Hacks Repelled . | . . . . . . . . . Allies | -11 -10 -10 -10 -9 -8 -8 -8 -8 -------- Run | Yrd Mat Min Exi Min Mat Sto Rec Scr Total Allies 11 | . . . . . . 2 9 . Largest Group 9 | . . . . . . 2 9 9 Highest-Rated Group 159 | . . . . . . 62 159 159 Highest-Rated Ally 31 | . . . . . . 31 27 27 Total Orders . | . . . . . . . . . Ally Attacks 26 | . . . . . . 26 . . Total Damage 379 | . . . . . . 379 . . Kills 4 | . . . . . . 4 . . Allies Corrupted . | . . . . . . . . . Allies Melted . | . . . . . . . . . Intel | -11 -10 -10 -10 -9 -8 -8 -8 -8 ------- Run | Yrd Mat Min Exi Min Mat Sto Rec Scr Active Infowar (turns) 1814 | 4 259 288 376 258 629 . . . Seismic 1814 | 4 259 288 376 258 629 . . . Robot Analysis Total . | . . . . . . . . . Derelict Logs Recovered 1 | . . 1 . . . . . . Drone Launches . | . . . . . . . . . Drone Recoveries . | . . . . . . . . . Exploration | -11 -10 -10 -10 -9 -8 -8 -8 -8 ------------- Run | Yrd Mat Min Exi Min Mat Sto Rec Scr Turns Passed 7354 | 85 510 844 376 258 1593 1830 1299 559 Spaces Moved 4024 | 70 330 572 236 162 666 860 718 410 Core 9 | 9 . . . . . . . . Treads 11 | . 6 . . . 3 2 . . Legs . | . . . . . . . . . Wheels 4004 | 61 324 572 236 162 663 858 718 410 Hover . | . . . . . . . . . Flight . | . . . . . . . . . Fastest Speed 50 | 50 90 135 135 135 125 125 135 135 Average Speed 135 | 84 115 135 135 135 151 136 135 135 Slowest Speed 240 | 90 160 175 135 135 240 240 135 135 Overloaded Moves . | . . . . . . . . . Propulsion Burnouts . | . . . . . . . . . Robots Hopped . | . . . . . . . . . Potential Cave-ins . | . . . . . . . . . Cave-ins Triggered . | . . . . . . . . . Exploration Rate (%) 63 | 3 50 95 59 50 66 96 99 49 Regions Visited 8 Branch Regions 6 Pre-discovered Areas 14 | . 2 . 1 . 1 2 7 1 Known Exits Taken 1 | . . . . . 1 . . . Unknown Exits Taken 7 | 1 1 1 1 1 . 1 1 . Scrap Searched 8 | . . 2 . 1 . . . 5 Spaces Dug 4 | . . . . . . 1 3 . Terrain Destroyed 302 | . 19 31 . 30 138 72 12 . Melee . | . . . . . . . . . Projectile 64 | . . . . . 19 33 12 . AOE 238 | . 19 31 . 30 119 39 . . Terrain Rammed . | . . . . . . . . . Walls Destroyed . | . . . . . . . . . Machines Disabled . | . . . . . . . . . Actions | -11 -10 -10 -10 -9 -8 -8 -8 -8 --------- Run | Yrd Mat Min Exi Min Mat Sto Rec Scr Total 5440 | 86 411 622 294 196 1038 1367 1008 418 Wait 804 | 3 25 24 53 24 143 342 190 . Move 4016 | 69 329 571 235 161 665 859 717 410 Hop . | . . . . . . . . . Pick Up 64 | 3 4 2 5 2 32 9 4 3 Fast Attach 40 | 7 1 1 . 1 18 11 . 1 Attach 27 | . 1 2 . . 17 5 2 . Detach 11 | . 3 . . . 3 3 2 . Swap 65 | . 17 9 . 4 17 13 5 . Drop 55 | . 4 1 1 1 22 20 2 4 Fire 298 | 4 27 12 . 3 121 105 26 . Melee . | . . . . . . . . . Ram . | . . . . . . . . . Kick . | . . . . . . . . . Crush . | . . . . . . . . . Escape Stasis . | . . . . . . . . . Rewire 60 | . . . . . . . 60 . Trap . | . . . . . . . . . Miscellaneous . | . . . . . . . . . Route ------- -11/Scrapyard -10/Materials (discovered 2 exits: [*Mat] / [*Min]) -10/Mines (discovered 4 exits: [*Mat x2] / *Exi / [*Sub]) -10/Exiles -9/Mines -8/Materials (discovered 3 exits: *Fac x2 / *Sto) -8/Storage (discovered 2 exits: *Fac / *Rec) -8/Recycling (discovered 2 exits: [*Fac] / [*Scr]) -8/Scraptown (discovered 1 exit: [*Fac]) History --------- Turn | Location | Event 10 | -11/Scrapyard | Discovered new exit (range 16) 86 | -11/Scrapyard | Entered Materials 279 | -10/Materials | Discovered new exit (range 13) 312 | -10/Materials | Build established: Mutant 446 | -10/Materials | Discovered new exit (range 16) 596 | -10/Materials | Entered Mines 652 | -10/Mines | Met a Derelict bent on vengeance 792 | -10/Mines | Deemed a non-threat by the Exiles lab entrance 792 | -10/Mines | Discovered new exit (range 5) 841 | -10/Mines | Learned location of 1 exit from Materials 963 | -10/Mines | Found a Scrap Suit stashed away for nefarious purposes 1096 | -10/Mines | Discovered new exit (range 5) 1180 | -10/Mines | Discovered new exit (range 9) 1256 | -10/Mines | Discovered new exit (range 15) 1440 | -10/Mines | Entered Exiles 1477 | -10/Exiles | Met 8R-AWN 1499 | -10/Exiles | Met EX-HEX 1537 | -10/Exiles | Met EX-BIN 1553 | -10/Exiles | Aligned with FarCom system 1554 | -10/Exiles | Given EX-Vault access code 1587 | -10/Exiles | Opened EX-Vault 1600 | -10/Exiles | Found Flying Fortress v7 1614 | -10/Exiles | Found Modified TNC 1643 | -10/Exiles | Warned to stay clear of 0b10 Research branches 1644 | -10/Exiles | Exiles lab attacked by MAIN.C 1704 | -10/Exiles | Learned location of Zion (-7) 1752 | -10/Exiles | Discovered new exit (range 12) 1816 | -10/Exiles | Left Exiles lab with Modified TNC 1816 | -10/Exiles | Entered Mines 2034 | -9/Mines | Discovered new exit (range 9) 2048 | -9/Mines | Assembled infested the area 2074 | -9/Mines | Entered Materials 2074 | -8/Materials | Evolved 4 slots: Propulsion x1, Utility x2, Weapon x1 2075 | -8/Materials | Identified exit to Factory 2093 | -8/Materials | Identified exit to Storage 2195 | -8/Materials | Lost 3 parts (2n1u) 2500 | -8/Materials | Lost 10 parts (1p3n3u3w) 2594 | -8/Materials | Central database locked down 2690 | -8/Materials | Discovered exit to Factory (range 16) 2777 | -8/Materials | Build established: Skirmisher 3364 | -8/Materials | Core integrity fell below 50% 3667 | -8/Materials | Entered Storage 3869 | -8/Storage | Used back door to open Recycling access 3869 | -8/Storage | Discovered new exit (range 5) 3920 | -8/Storage | Repaired Hvy. Assault Cannon? 4108 | -8/Storage | Met a pair of Derelict thieves 4206 | -8/Storage | Build established: Scavenger-Skirmisher 4689 | -8/Storage | Repaired Hvy. Armor Plating 4728 | -8/Storage | Repaired Hvy. Assault Cannon 4891 | -8/Storage | Discovered exit to Factory (range 7) 4906 | -8/Storage | Core integrity fell below 20% 5497 | -8/Storage | Entered Recycling 5498 | -8/Recycling | Met a Zionite searching for Scraptown 5954 | -8/Recycling | Build established: Commander-Skirmisher 6436 | -8/Recycling | Discovered new exit (range 5) 6468 | -8/Recycling | Learned 2 Storage zone layouts 6587 | -8/Recycling | Learned Factory emergency access door positions 6632 | -8/Recycling | Learned location of 1 exit from Lower Caves 6666 | -8/Recycling | Learned 12 Factory zone layouts 6677 | -8/Recycling | Scanned before Scraplab entrance 6709 | -8/Recycling | Entered Scraplab 6719 | -8/Recycling | Learned Storage trap positions 6720 | -8/Recycling | Discovered new exit (range 3) 6796 | -8/Recycling | Entered Scraptown 6796 | -8/Scraptown | Accompanied by 9 allies 6996 | -8/Scraptown | Turned away by UFD registrar 7017 | -8/Scraptown | Visited Cyclists 7035 | -8/Scraptown | Visited Awakened 7048 | -8/Scraptown | Visited Junk Repository 7056 | -8/Scraptown | Visited Artisan Demo Area 7104 | -8/Scraptown | Build established: Commander-Tank 7105 | -8/Scraptown | Visited TADAMA 7119 | -8/Scraptown | Visited Assassins FH 7151 | -8/Scraptown | Learned location of Extension (-4) 7286 | -8/Scraptown | Discovered new exit (range 11) 7355 | -8/Scraptown | Self-destructed Last Messages --------------- powered armor escorting another rather strange-looking Derelict? I swear I saw a glimpse of them sneaking their way through 0b10 Extension just recently. No one believes me! World map updated: -4/Extension. 07154_ Searching scrap... 07154_ Found Hrd. Light Armor Plating. 07154_ Found 50 Matter. 07154_ Found Hvy. Assault Rifle. 07154_ Found 69 Matter. 07286_ EXIT=FOUND 07309_ Searching scrap... 07309_ Found Imp. Datajack. 07309_ Found Adv. Treads. 07309_ Found Riot Gun. 07309_ Found 48 Matter. 07312_ Dropped Lgt. Treads. 07312_ Acquired Adv. Treads. 07314_ Acquired 10 matter. Map ----- +----------------------------------------------------+ | | | | | | | | | | | | | | | | | | | | | | | | | | | | | | | | | | | | | | | | | | | | | | | ?????????????????????????????????????????????????? | | #???#?????????????????#########??????????????????? | | "??"""????????????????#""@ ss ##?????????????????? | | "????????????????#" < g E#?##########?####?? | | """ "?????########???#"" ###"""""""""#""""??? | | """ "#???#"""""""#???#####ii #?#" "#" ?? | | """ "#???#"" ""#???????# Y #?#" """ | | "#???#"" ""#???????# i#?#" "#" "" | | "" """###?#""" ""#???????# a#?#" """ "#" " | | #?#"" ""#??????## ###" "#" | | ###""" """######## ##"""""" ""#"" """" | | | | | | | | ###### ########### ##########"" """"## | | #????# #?????????## ##????????#" /[%"#? | | #????" "??????????# #?????????#" = ""#? | | #??? " " ?????????# ""????????#" """#? | | #""" ""#??" "????????# " ???????#" """#? | | #""" "#? " " ???????" ??????#"""""""#? | | #""" "#?"""" ""?"??????"" " ?????#########? | | #"" "#????# #???????? " """""??????????????? | | #" "#????? ?????????? ##""???????????#?#?? | | #?"" ""#????? ?????????? " #####??????????"#"?? | | #?## ##?????? ?????????? " #""""????"#???? X ?? | | #??# ??????? ???????????" #" ? "#???? ?? | | #???##??????? ???????????# #" "#???? ?? | +----------------------------------------------------+ Best States ------------- Heat Dissipation 59 Energy Generation 18 Energy Capacity 280 Matter Stores 300 Matter Capacity 300 Sight Range 16 Terrain Scan Density 10 Base Temperature (-) 100 Armor Coverage 600 Evasion (%) 44 Targeting Accuracy 8 Recoil Reduction 3 Offensive Hacking 10 Authchip Count 3 Item Schematics ----------------- Adv. EMP Blaster | -8/Materials | Scanalyzed Hacking Suite | -8/Materials | Scanalyzed Robot Schematics ------------------ None Fabricated ------------ Nothing Repaired ---------- Hvy. Assault Cannon | 58% | -8/Storage Hvy. Armor Plating | 45% | -8/Storage Hvy. Assault Cannon | 66% | -8/Storage Studied --------- Com. Wheel | -8/Materials | Hacked Wheel | -8/Materials | Hacked Alien Tech Used ----------------- None Achievements -------------- None Challenges ------------ None Game ------ Seed NuclearOpticalMaxwheels Manual? 0 Play Time 00:45:51 Cumulative 1014.0 hours Start 2026.08.14 @ 20:36:45 End 2026.08.14 @ 21:20:55 Sessions 1 Manual Loads 0 Difficulty Rogue Special Mode None Game No. 283 Rogue 283 Adventurer 0 Explorer 0 Win Type - Total 44 Types 13/9/10/2/2/0/4/1/1/2 Lore% 97 Gallery% 91 Achievement% 87 Wizard Run 0 Options --------- Layout 1 ASCII 0 Keyboard 0 Movement Mouse Keybinds 0 Fullscreen 2 Font 32/SmallcapsGlow Map View 50x35 Zoom Use 0% Tactical HUD 1 Map Filters NONE Filters NONE Steam 1 RUN: c79d71e1-c3fe-4d1c-8451-9ac140fda5a1